bitfinex-derivatives/quotes_BTCF0:USTF0_20251111
["timestamp","ask_amount","ask_price","bid_price","bid_amount"]
[1762904999064,0.68126753,103080.0,103070.0,0.00219803]
[1762905000552,0.15673717,103070.0,103060.0,0.04531526]
[1762905000752,0.5276952,103070.0,103060.0,0.04604793]
[1762905001148,0.45799846,103090.0,103080.0,0.0326]
[1762905001347,0.5016241,103100.0,103090.0,0.1560764]
[1762905001549,0.4759249,103110.0,103100.0,0.05903]
[1762905001550,0.483835,103110.0,103100.0,0.05903]
[1762905001751,0.483835,103110.0,103100.0,0.06122803]
[1762905001752,0.888745,103110.0,103100.0,0.06122803]
[1762905001952,1.06152181,103110.0,103100.0,0.04736803]
[1762905002747,1.05667427,103110.0,103100.0,0.06122803]
[1762905002958,0.88389746,103110.0,103100.0,0.15826503]
[1762905003158,0.88589746,103110.0,103100.0,0.15826503]
[1762905003347,0.88589746,103110.0,103100.0,0.06122803]
[1762905004058,0.88889746,103110.0,103100.0,0.04736803]
[1762905004559,0.86559737,103110.0,103100.0,0.02513803]
[1762905004761,0.86559737,103110.0,103100.0,0.04736803]
[1762905005066,1.03352851,103110.0,103100.0,0.04736803]
[1762905005250,1.03832851,103110.0,103100.0,0.15826503]
[1762905005566,0.8655517,103110.0,103100.0,0.06122803]
[1762905005755,1.03832851,103110.0,103100.0,0.04736803]
[1762905006653,1.03832851,103110.0,103100.0,0.18423133]
[1762905006654,0.40004,103110.0,103100.0,0.18423133]
[1762905006852,0.42262,103110.0,103100.0,0.68310886]
[1762905007056,0.65772513,103110.0,103100.0,0.54503133]
[1762905007363,0.5196476,103110.0,103100.0,0.67830886]
[1762905007659,0.42262,103110.0,103100.0,0.67830886]
[1762905007863,0.5196476,103110.0,103100.0,0.67830886]
[1762905008757,0.42262,103110.0,103100.0,0.67830886]
[1762905009360,0.42262,103110.0,103100.0,0.71293059]
[1762905009554,0.41777246,103110.0,103100.0,0.71293059]
[1762905010060,0.05358,103110.0,103100.0,0.57485306]
[1762905010262,0.42242,103110.0,103100.0,0.68696429]
[1762905010463,1.16969266,103110.0,103100.0,0.03462173]
[1762905010658,0.140817,103100.0,103090.0,0.06080231]
[1762905010958,0.77777206,103100.0,103090.0,0.00014526]
[1762905011767,0.1408264,103090.0,103080.0,0.11503231]
[1762905012064,1.00870393,103090.0,103080.0,0.11723034]
[1762905012266,1.01912393,103090.0,103080.0,0.10337034]
[1762905012467,0.99581925,103090.0,103080.0,0.10337034]
[1762905012853,1.03046359,103090.0,103080.0,0.10337034]
[1762905013366,1.03046359,103090.0,103080.0,0.05820034]
[1762905013551,1.03046359,103090.0,103080.0,0.02134452]
[1762905013755,1.05476827,103090.0,103080.0,0.02134452]
[1762905013957,1.04992073,103090.0,103080.0,0.02134452]
[1762905014461,1.04992073,103090.0,103070.0,0.00014526]
[1762905014661,0.32199767,103080.0,103070.0,0.04751329]
[1762905015072,0.32199767,103080.0,103070.0,0.06137329]
[1762905015255,0.04378,103080.0,103070.0,0.15843849]
[1762905015564,0.04478,103090.0,103080.0,0.1560858]
[1762905015765,0.41374,103090.0,103080.0,0.57093104]
[1762905016157,0.5107864,103090.0,103080.0,0.11307524]
[1762905016458,0.5097864,103090.0,103080.0,0.11307524]
[1762905016866,0.41274,103090.0,103080.0,0.21013104]
[1762905017171,0.41292526,103100.0,103090.0,0.1560764]
[1762905017360,0.41292526,103100.0,103090.0,0.21012164]
[1762905018566,0.50511472,103100.0,103090.0,0.21112164]
[1762905019066,0.50511472,103100.0,103090.0,0.57092164]
[1762905019461,0.1474664,103090.0,103080.0,0.05184721]
[1762905019764,0.11431948,103080.0,103070.0,0.41279247]
[1762905019965,0.65608135,103080.0,103070.0,0.4149905]
[1762905020269,0.65608135,103080.0,103070.0,0.36314329]
[1762905020569,0.65608135,103080.0,103070.0,0.35834329]
[1762905020871,0.84415948,103080.0,103070.0,0.00219803]
[1762905021368,1.01688135,103080.0,103070.0,0.00219803]
[1762905021569,1.01688135,103080.0,103070.0,0.02513803]
[1762905022756,1.01203381,103080.0,103070.0,0.02513803]
[1762905024775,1.01203381,103080.0,103070.0,0.12220323]
[1762905024976,1.00579184,103080.0,103070.0,0.1533059]
[1762905025170,0.41501803,103080.0,103070.0,0.5141059]
[1762905025365,0.00219803,103080.0,103070.0,0.5141059]
[1762905025676,0.00219803,103080.0,103070.0,0.56595311]
[1762905025677,0.37119803,103080.0,103070.0,0.56595311]
[1762905026075,0.00219803,103080.0,103070.0,0.56595311]
[1762905026573,0.00219803,103080.0,103070.0,0.56695311]
[1762905027167,0.50764911,103090.0,103080.0,0.1534358]
[1762905027374,0.50764911,103090.0,103080.0,0.15563383]
[1762905027779,0.50764911,103090.0,103080.0,0.05857803]
[1762905028073,0.50764911,103090.0,103080.0,0.15563383]
[1762905028467,0.50764911,103090.0,103080.0,0.05857803]
[1762905028670,0.50764911,103090.0,103080.0,0.15563383]
[1762905029478,0.50764911,103090.0,103080.0,0.05377803]
[1762905029665,0.86844911,103090.0,103080.0,0.05377803]
[1762905030881,0.86844911,103090.0,103080.0,0.15083383]
[1762905031574,0.86360157,103090.0,103080.0,0.15083383]
[1762905032778,0.86360157,103090.0,103080.0,0.05377803]
[1762905033879,0.86360157,103090.0,103080.0,0.04897803]
[1762905034480,0.87504157,103090.0,103080.0,0.04897803]
[1762905035382,0.87504157,103090.0,103080.0,0.03533803]
[1762905035983,0.87019403,103090.0,103080.0,0.03533803]
[1762905036379,0.89192175,103090.0,103080.0,0.03533803]
[1762905036687,0.89192175,103090.0,103080.0,0.13239383]
[1762905036879,0.43487772,103090.0,103080.0,0.14603383]
[1762905037271,0.41305526,103100.0,103090.0,0.1534264]
[1762905037473,0.51009226,103100.0,103090.0,0.51642443]
[1762905037888,0.14133226,103100.0,103090.0,0.51642443]
[1762905038186,0.14133226,103100.0,103090.0,0.51162443]
[1762905038187,0.51021226,103100.0,103090.0,0.51162443]
[1762905039285,0.51021226,103100.0,103090.0,0.15082443]
[1762905039490,0.51021226,103100.0,103090.0,0.51162443]
[1762905040182,0.51021226,103100.0,103090.0,0.15082443]
[1762905040481,0.53971409,103100.0,103090.0,0.05377803]
[1762905040675,1.07323596,103100.0,103090.0,0.00219803]
[1762905040986,0.1538064,103090.0,103080.0,0.00014526]
[1762905041280,0.70906764,103090.0,103060.0,0.4717279]
[1762905041486,0.1460152,103070.0,103060.0,0.51666593]
[1762905041785,0.1460152,103070.0,103060.0,0.04493803]
[1762905042484,0.1460152,103070.0,103060.0,0.14201273]
[1762905042684,0.1508152,103070.0,103060.0,0.14201273]
[1762905043387,0.1508152,103070.0,103060.0,0.51645273]
[1762905044481,0.1508152,103070.0,103060.0,0.41937803]
[1762905044987,0.1460152,103070.0,103060.0,0.51645273]
[1762905046675,0.02589,103070.0,103060.0,0.51645273]
[1762905046979,0.37364,103070.0,103060.0,0.51645273]
[1762905047877,0.37364,103070.0,103060.0,0.51745273]
[1762905047878,0.5148552,103070.0,103060.0,0.51745273]
[1762905048288,0.41779,103070.0,103060.0,0.51745273]
[1762905048691,0.5148552,103070.0,103060.0,0.51745273]
[1762905049081,0.5148552,103070.0,103060.0,0.51845273]
[1762905049381,0.5148552,103070.0,103060.0,0.51745273]
[1762905049584,0.5148552,103070.0,103060.0,0.51845273]
[1762905050083,0.5148552,103070.0,103060.0,0.51645273]
[1762905051286,0.04895,103070.0,103060.0,0.51645273]
[1762905051490,0.41763,103070.0,103060.0,0.51645273]
[1762905051884,0.0048,103070.0,103060.0,0.75901273]
[1762905052092,0.0048,103070.0,103060.0,0.51645273]
[1762905052477,0.0048,103070.0,103060.0,0.76001273]
[1762905052888,0.0048,103070.0,103060.0,0.51845273]
[1762905053281,0.05016,103070.0,103060.0,0.51845273]
[1762905053677,0.1472252,103070.0,103060.0,0.51845273]
[1762905054285,0.1520252,103070.0,103060.0,0.51845273]
[1762905054788,0.1472252,103070.0,103060.0,0.51845273]
[1762905054982,0.1472252,103070.0,103060.0,0.51745273]
[1762905055994,0.1472252,103070.0,103060.0,0.51645273]
[1762905056493,0.32474707,103070.0,103060.0,0.00219803]
[1762905056686,0.32474707,103070.0,103060.0,0.36299803]
[1762905056988,0.70729435,103070.0,103060.0,0.00219803]
[1762905057582,0.1550447,103060.0,103050.0,0.41948526]
[1762905057795,0.69644657,103060.0,103050.0,0.42168329]
[1762905058180,0.69644657,103060.0,103050.0,0.04724329]
[1762905058390,1.07899042,103060.0,103050.0,0.00014526]
[1762905058694,0.1514135,103040.0,103030.0,0.41732]
[1762905058988,0.5201335,103040.0,103030.0,0.04507803]
[1762905059394,0.8809335,103040.0,103030.0,0.04507803]
[1762905059594,0.8809335,103040.0,103030.0,0.00219803]
[1762905059789,1.09827962,103040.0,103030.0,0.00819803]
[1762905060103,1.12001579,103040.0,103030.0,0.00819803]
[1762905060396,1.12001579,103040.0,103030.0,0.006]
[1762905060594,1.12101579,103040.0,103030.0,0.003]
[1762905060794,1.09927962,103040.0,103030.0,0.003]
[1762905060993,1.12101519,103040.0,103030.0,0.003]
[1762905061193,0.1418329,103030.0,103020.0,0.50101512]
[1762905061496,0.1418329,103030.0,103020.0,0.50321315]
[1762905061684,0.1418329,103030.0,103020.0,0.41903145]
[1762905061883,0.36397902,103030.0,103020.0,0.00242145]
[1762905062086,0.36397902,103030.0,103020.0,0.00022342]
[1762905062290,0.72477902,103030.0,103020.0,0.00022342]
[1762905062596,0.74648266,103030.0,103020.0,0.00022342]
[1762905063803,0.74648266,103030.0,102990.0,0.41661]
[1762905063804,0.1514511,103000.0,102990.0,0.41661]
[1762905064094,0.1418706,102990.0,102980.0,0.41661]
[1762905064285,0.1466706,102990.0,102980.0,0.41880803]
[1762905064492,0.04953,102990.0,102980.0,0.50302803]
[1762905064688,0.0448024,102990.0,102980.0,0.51595803]
[1762905065003,0.0418024,102990.0,102980.0,0.51595803]
[1762905065208,0.0388024,102990.0,102980.0,0.51595803]
[1762905066799,0.135943,102990.0,102980.0,0.51595803]
[1762905067402,0.135943,102990.0,102980.0,0.41880803]
[1762905067792,0.135943,102990.0,102980.0,0.00219803]
[1762905067992,0.35328912,102990.0,102980.0,0.00219803]
[1762905068298,0.14188,102980.0,102970.0,0.41675526]
[1762905068601,0.51104,102980.0,102970.0,0.41895329]
[1762905068798,0.51104,102980.0,102970.0,0.51611269]
[1762905069000,0.51104,102980.0,102970.0,0.41895329]
[1762905069503,0.51304,102980.0,102970.0,0.41895329]
[1762905069703,1.09118612,102980.0,102970.0,0.05815329]
[1762905069894,0.87384,102980.0,102970.0,0.05815329]
[1762905070389,0.87484,102980.0,102970.0,0.02361329]
[1762905070588,0.87484,102980.0,102970.0,0.04522329]
[1762905070795,0.41689,102980.0,102970.0,0.50318269]
[1762905070996,0.003,102980.0,102970.0,0.51611269]
[1762905071304,0.04773,102980.0,102970.0,0.41895329]
[1762905071501,0.04773,102980.0,102970.0,0.51611279]
[1762905072001,0.003,102980.0,102970.0,0.51611279]
[1762905073705,7.24e-05,102990.0,102980.0,0.15296]
[1762905073897,7.24e-05,102990.0,102980.0,0.51595803]
[1762905075702,0.0010724,102990.0,102980.0,0.51595803]
[1762905076109,0.098213,102990.0,102980.0,0.51595803]
[1762905076403,0.0010724,102990.0,102980.0,0.51595803]
[1762905076799,0.0040724,102990.0,102980.0,0.51595803]
[1762905077702,0.123263,102990.0,102980.0,0.51595803]
[1762905077904,0.145943,102990.0,102980.0,0.51595803]
[1762905078291,0.0488024,102990.0,102980.0,0.51595803]
[1762905078493,0.0261224,102990.0,102980.0,0.51595803]
[1762905078706,0.0040724,102990.0,102980.0,0.51595803]
[1762905079099,0.0040724,102990.0,102980.0,1.10250415]
[1762905079302,0.00014526,103000.0,102990.0,0.1529506]
[1762905079502,0.00014526,103000.0,102990.0,0.51594863]
[1762905080707,0.14431646,103000.0,102990.0,0.51594863]
[1762905081007,0.14531646,103000.0,102990.0,0.51594863]
[1762905082001,0.37529258,103000.0,102990.0,0.04507803]
[1762905082202,0.37529258,103000.0,102990.0,0.00219803]
[1762905082903,0.73609258,103000.0,102990.0,0.00219803]
[1762905085212,0.1431806,102990.0,102980.0,0.51636]
[1762905085508,0.5124206,102990.0,102980.0,0.51855803]
[1762905085713,0.5124206,102990.0,102980.0,0.42140803]
[1762905086098,0.73756672,102990.0,102980.0,0.42140803]
[1762905086302,0.73756672,102990.0,102980.0,0.00219803]
[1762905086508,1.11923413,102990.0,102980.0,0.00219803]
[1762905086711,0.14319,102980.0,102970.0,0.05855526]
[1762905087006,0.14319,102980.0,102970.0,0.06075329]
[1762905087402,0.72133612,102980.0,102970.0,0.06075329]
[1762905087602,0.74222483,102980.0,102970.0,0.06075329]
[1762905087804,0.52487871,102980.0,102970.0,0.06075329]
[1762905088008,0.53235871,102980.0,102970.0,0.06075329]
[1762905088311,0.53335871,102980.0,102970.0,0.04782329]
[1762905088606,0.75070483,102980.0,102970.0,0.00014526]
[1762905089709,0.52687871,102980.0,102970.0,0.15782269]
[1762905090300,0.53435871,102980.0,102970.0,0.15782269]
[1762905090712,0.52687871,102980.0,102970.0,0.15782269]
[1762905090913,0.75170483,102980.0,102970.0,0.02482329]
[1762905091211,0.75170483,102980.0,102970.0,0.12198269]
[1762905091412,0.75170483,102980.0,102970.0,0.00234329]
[1762905091710,0.75170483,102980.0,102970.0,0.02482329]
[1762905091910,0.75170483,102980.0,102970.0,0.12198269]
[1762905092207,0.53435871,102980.0,102970.0,0.15782269]
[1762905093416,0.54279871,102980.0,102970.0,0.15782269]
[1762905094508,0.06892871,102980.0,102970.0,0.15782269]
[1762905094701,0.02288871,102980.0,102970.0,0.51862269]
[1762905094909,0.002,102980.0,102970.0,0.51862269]
[1762905095602,0.002,102980.0,102970.0,0.57050476]
[1762905095803,0.41552,102990.0,102980.0,0.15547]
[1762905096005,0.5335936,102990.0,102980.0,0.51846803]
[1762905096215,0.436453,102990.0,102980.0,0.51846803]
[1762905096512,0.00014526,103000.0,102990.0,0.1554606]
[1762905096811,0.00014526,103000.0,102990.0,0.51845863]
[1762905097112,0.14331636,103000.0,102990.0,0.51845863]
[1762905098213,0.04618526,103000.0,102990.0,0.51845863]
[1762905098415,0.14331636,103000.0,102990.0,0.51845863]
[1762905098716,0.14431636,103000.0,102990.0,0.51845863]
[1762905099215,0.00114526,103000.0,102990.0,0.51845863]
[1762905100016,0.00214526,103000.0,102990.0,0.51845863]
[1762905101610,0.14531636,103000.0,102990.0,0.51845863]
[1762905102010,0.00214526,103000.0,102990.0,0.51845863]
[1762905102218,0.38409,103020.0,103010.0,0.05832]
[1762905102414,0.36677356,103020.0,103010.0,0.15763973]
[1762905102916,0.46388586,103020.0,103010.0,0.15763973]
[1762905103409,0.46688586,103020.0,103010.0,0.15763973]
[1762905103610,0.49017586,103020.0,103010.0,0.15763973]
[1762905104011,0.49017586,103020.0,103010.0,0.51843973]
[1762905104519,0.49317586,103020.0,103010.0,0.51843973]
[1762905105619,0.51592586,103020.0,103010.0,0.51843973]
[1762905106723,0.51592586,103020.0,103010.0,0.42131803]
[1762905107023,0.51592586,103020.0,103010.0,0.51843973]
[1762905108021,0.51592586,103020.0,103010.0,0.42131803]
[1762905109720,0.51592586,103020.0,103010.0,0.51843973]
[1762905109916,0.51592586,103020.0,103010.0,0.42131803]
[1762905110319,0.87672586,103020.0,103010.0,0.06051803]
[1762905110515,1.10369198,103020.0,103010.0,0.02467803]
[1762905110725,1.10369198,103020.0,103010.0,0.00219803]
[1762905111424,1.08037013,103020.0,103010.0,0.00219803]
[1762905111622,0.1481917,103010.0,103000.0,0.02317526]
[1762905111823,0.72633782,103010.0,103000.0,0.00234329]
[1762905112427,0.72766975,103010.0,103000.0,0.00234329]
[1762905112633,0.72766975,103010.0,103000.0,0.00014526]
[1762905113016,0.72966975,103010.0,103000.0,0.00014526]
[1762905113830,0.73166975,103010.0,103000.0,0.00014526]
[1762905117234,0.51432363,103010.0,103000.0,0.00014526]
[1762905117426,0.73166975,103010.0,103000.0,0.00014526]
[1762905117628,0.73166975,103010.0,103000.0,0.09727636]
[1762905117825,0.73166975,103010.0,103000.0,0.09947439]
[1762905118228,0.50652363,103010.0,103000.0,0.15846439]
[1762905118625,0.14572363,103010.0,103000.0,0.15846439]
[1762905119035,0.00533193,103010.0,103000.0,0.51926439]
[1762905119426,1.02417888,103020.0,103010.0,0.1556017]
[1762905119729,1.02417888,103020.0,103010.0,0.15779973]
[1762905120034,0.70698888,103020.0,103010.0,0.15779973]
[1762905120434,1.06778888,103020.0,103010.0,0.06067803]
[1762905120636,1.07078888,103020.0,103010.0,0.15779973]
[1762905120832,0.74532642,103020.0,103010.0,0.15779973]
[1762905121026,0.75576642,103020.0,103010.0,0.15779973]
[1762905121632,0.65864772,103020.0,103010.0,0.15779973]
[1762905121833,0.41785,103020.0,103010.0,0.15779973]
[1762905122036,0.39543,103020.0,103010.0,0.15779973]
[1762905122232,0.005,103020.0,103010.0,0.55339538]
[1762905122536,0.00014526,103030.0,103020.0,0.1555923]
[1762905122739,0.00014526,103030.0,103020.0,0.55338598]
[1762905122930,0.02133526,103030.0,103020.0,0.55338598]
[1762905123333,0.00014526,103030.0,103020.0,0.55338598]
[1762905123737,0.11843816,103030.0,103020.0,0.55338598]
[1762905123941,0.02133526,103030.0,103020.0,0.55338598]
[1762905124239,0.11843816,103030.0,103020.0,0.55638598]
[1762905125134,0.02133526,103030.0,103020.0,0.55638598]
[1762905125933,0.11843816,103030.0,103020.0,0.55638598]
[1762905126441,0.14085816,103030.0,103020.0,0.55638598]
[1762905130336,0.00014526,103030.0,103020.0,0.55638598]
[1762905130736,0.3608,103040.0,103030.0,0.1555829]
[1762905131035,0.3608,103040.0,103030.0,0.19257658]
[1762905131338,1.06788312,103050.0,103040.0,0.1555734]
[1762905131540,1.06788312,103050.0,103040.0,0.15777143]
[1762905131740,1.25044136,103050.0,103040.0,0.06067803]
[1762905132350,1.25044136,103050.0,103040.0,0.04738803]
[1762905132641,1.07750312,103050.0,103040.0,0.06067803]
[1762905132942,1.24082136,103050.0,103040.0,0.15777143]
[1762905133143,1.06788312,103050.0,103040.0,0.15777143]
[1762905133539,1.06788312,103050.0,103040.0,0.06067803]
[1762905133739,1.25044136,103050.0,103040.0,0.06067803]
[1762905134038,0.50162996,103060.0,103050.0,0.155564]
[1762905134344,0.41287526,103060.0,103050.0,0.15776203]
[1762905134737,0.50994986,103060.0,103050.0,0.15776203]
[1762905135043,0.41287526,103060.0,103050.0,0.15776203]
[1762905135234,0.41487526,103060.0,103050.0,0.15776203]
[1762905135435,0.41487526,103060.0,103050.0,0.51856203]
[1762905135947,0.51194986,103060.0,103050.0,0.51856203]
[1762905136241,0.41487526,103060.0,103050.0,0.51856203]
[1762905138037,0.00214526,103060.0,103050.0,0.51856203]
[1762905138233,0.37130526,103060.0,103050.0,0.51856203]
[1762905138437,0.00214526,103060.0,103050.0,0.51856203]
[1762905138630,0.37130526,103060.0,103050.0,0.51856203]
[1762905138835,0.37142526,103060.0,103050.0,0.51856203]
[1762905139241,0.37142526,103060.0,103050.0,0.55335768]
[1762905139442,0.37138526,103060.0,103050.0,0.55335768]
[1762905140038,0.00214526,103060.0,103050.0,0.55335768]
[1762905140242,0.00214526,103060.0,103050.0,0.51856203]
[1762905141641,0.00214526,103060.0,103050.0,0.69150027]
[1762905141944,0.00214526,103060.0,103050.0,0.55335768]
[1762905142144,0.00214526,103060.0,103050.0,0.51856203]
[1762905143048,0.00214526,103060.0,103050.0,0.55335768]
[1762905143248,0.00214526,103060.0,103050.0,0.79595768]
[1762905144042,0.00214526,103060.0,103050.0,0.55335768]
[1762905144437,0.00214526,103060.0,103050.0,0.79595768]
[1762905144644,0.00214526,103060.0,103050.0,0.55335768]
[1762905144835,0.00214526,103060.0,103050.0,0.79595768]
[1762905145447,0.00214526,103060.0,103050.0,0.55335768]
[1762905146039,0.00214526,103060.0,103050.0,1.12629592]
[1762905146450,0.0048,103070.0,103060.0,0.1557546]
[1762905146651,0.0048,103070.0,103060.0,1.06073087]
[1762905147049,0.0048,103070.0,103060.0,0.88779263]
[1762905147448,0.04921,103070.0,103060.0,0.88779263]
[1762905147646,0.1462752,103070.0,103060.0,0.51875263]
[1762905147845,0.68001344,103070.0,103060.0,0.15795263]
[1762905148149,1.04909344,103070.0,103060.0,0.15995263]
[1762905148345,0.68829344,103070.0,103060.0,0.15995263]
[1762905148946,0.5153552,103070.0,103060.0,0.16195263]
[1762905149540,0.5153552,103070.0,103060.0,0.16095263]
[1762905149942,0.5153552,103070.0,103060.0,0.15995263]
[1762905150246,0.5153552,103070.0,103060.0,0.52075263]
[1762905150751,0.41829,103070.0,103060.0,0.52075263]
[1762905150944,0.5153552,103070.0,103060.0,0.52075263]
[1762905154055,0.41829,103070.0,103060.0,0.52075263]
[1762905154249,0.5153552,103070.0,103060.0,0.52075263]
[1762905156053,0.70092344,103070.0,103060.0,0.50769263]
[1762905156355,1.06172344,103070.0,103060.0,0.14689263]
[1762905156556,1.06172344,103070.0,103060.0,0.15995263]
[1762905156946,0.8887852,103070.0,103060.0,0.15995263]
[1762905157352,0.8761552,103070.0,103060.0,0.15995263]
[1762905157750,0.5153552,103070.0,103060.0,0.52075263]
[1762905158149,0.5153552,103070.0,103060.0,0.15995263]
[1762905159161,0.5153552,103070.0,103060.0,0.19474828]
[1762905160350,0.5153552,103070.0,103060.0,0.55554828]
[1762905160856,0.70092344,103070.0,103060.0,0.36499803]
[1762905161259,1.06172344,103070.0,103060.0,0.00419803]
[1762905162155,1.06172344,103070.0,103060.0,0.001]
[1762905162657,0.1511046,103060.0,103050.0,0.17764211]
[1762905162857,0.4276262,103060.0,103050.0,0.17984014]
[1762905163961,0.4276262,103060.0,103050.0,0.18084014]
[1762905164765,0.4276262,103060.0,103050.0,0.18184014]
[1762905165062,0.32392939,103060.0,103050.0,0.18184014]
[1762905165264,0.32392939,103060.0,103050.0,0.17984014]
[1762905165461,0.32392939,103060.0,103050.0,0.18084014]
[1762905165664,0.32392939,103060.0,103050.0,0.08375894]
[1762905166863,0.68472939,103060.0,103050.0,0.08375894]
[1762905167063,0.68472939,103060.0,103050.0,0.14604729]
[1762905167667,0.32392939,103060.0,103050.0,0.14604729]
[1762905167970,0.68472939,103060.0,103050.0,0.18084294]
[1762905168157,0.68472939,103060.0,103050.0,0.14604729]
[1762905168363,0.32392939,103060.0,103050.0,0.14604729]
[1762905168661,0.32392939,103060.0,103050.0,0.19390294]
[1762905169665,0.68314939,103060.0,103050.0,0.19390294]
[1762905169854,0.68310939,103060.0,103050.0,0.19390294]
[1762905171369,1.05352939,103060.0,103050.0,0.08375894]
[1762905171567,1.05352939,103060.0,103050.0,0.04896329]
[1762905172064,1.05352939,103060.0,103050.0,0.00334329]
[1762905172682,1.05352939,103060.0,103050.0,0.02539329]
[1762905172868,1.05352939,103060.0,103050.0,0.04714329]
[1762905174269,1.05352939,103060.0,103050.0,0.02539329]
[1762905174867,1.05352939,103060.0,103050.0,0.00334329]
[1762905175259,1.05352939,103060.0,103050.0,0.00114526]
[1762905175465,0.1535734,103040.0,103030.0,0.10872772]
[1762905175665,0.69519819,103040.0,103030.0,0.05904368]
[1762905176065,0.69519819,103040.0,103030.0,0.17789658]
[1762905176268,0.69519819,103040.0,103030.0,0.08079368]
[1762905176963,0.69519819,103040.0,103030.0,0.17789658]
[1762905177478,0.69519819,103040.0,103030.0,0.18189658]
[1762905178069,0.69519819,103040.0,103030.0,0.17989658]
[1762905179368,1.05599819,103040.0,103030.0,0.03899368]
[1762905179575,1.05599819,103040.0,103030.0,0.00419803]
[1762905180262,1.05599819,103040.0,103030.0,0.002]
[1762905180468,0.1523429,103030.0,103020.0,0.03494091]
[1762905180658,0.32516769,103030.0,103020.0,0.00234329]
[1762905180862,0.32516769,103030.0,103020.0,0.04796329]
[1762905181263,0.68596769,103030.0,103020.0,0.00014526]
[1762905181658,0.68596769,103030.0,103020.0,0.02567329]
[1762905181862,0.68596769,103030.0,103020.0,0.14507559]
[1762905182870,0.73056107,103030.0,103020.0,0.14507559]
[1762905184259,1.09944107,103030.0,103020.0,0.14507559]
[1762905185166,1.09944107,103030.0,103020.0,0.04796329]
[1762905185771,1.09944107,103030.0,103020.0,0.00234329]
[1762905186073,0.1530217,103010.0,103000.0,0.44130582]
[1762905186268,0.5219017,103010.0,103000.0,0.4087082]
[1762905186470,0.5219017,103010.0,103000.0,0.5058393]
[1762905186768,0.5219017,103010.0,103000.0,0.5193793]
[1762905186966,0.66028637,103010.0,103000.0,0.5193793]
[1762905187165,0.66028637,103010.0,103000.0,0.5213793]
[1762905187575,0.66028637,103010.0,103000.0,0.4242482]
[1762905187769,0.66028637,103010.0,103000.0,0.4262482]
[1762905188071,1.02108637,103010.0,103000.0,0.00409017]
[1762905188271,0.1530311,103000.0,102990.0,0.00014526]
[1762905188487,0.14176,102980.0,102970.0,0.45475565]
[1762905188774,0.64914467,102980.0,102970.0,0.45695368]
[1762905189069,0.51076,102980.0,102970.0,0.42215803]
[1762905189270,0.51084521,102980.0,102970.0,0.42215803]
[1762905189678,0.51084521,102980.0,102970.0,0.06135803]
[1762905190479,0.51084521,102980.0,102970.0,0.15851743]
[1762905190670,0.51084521,102980.0,102970.0,0.06235803]
[1762905190867,0.51084521,102980.0,102970.0,0.15951743]
[1762905191470,0.51084521,102980.0,102970.0,0.06235803]
[1762905191974,1.0987172,102980.0,102970.0,0.02433]
[1762905192579,1.0987172,102980.0,102970.0,0.04662]
[1762905192778,0.51084521,102980.0,102970.0,0.15951743]
[1762905192968,0.36904521,102980.0,102970.0,0.52031743]
[1762905193169,8.521e-05,102980.0,102970.0,0.73790942]
[1762905193374,8.521e-05,102980.0,102970.0,0.52031743]
[1762905197078,8.521e-05,102980.0,102970.0,0.52131743]
[1762905197374,8.521e-05,102980.0,102970.0,0.52231743]
[1762905198480,8.521e-05,102980.0,102970.0,0.52131743]
[1762905198682,8.521e-05,102980.0,102970.0,0.52331743]
[1762905200083,8.521e-05,102980.0,102970.0,0.52131743]
[1762905200275,8.521e-05,102980.0,102970.0,0.52231743]
[1762905200469,8.521e-05,102980.0,102970.0,0.52031743]
[1762905200673,8.521e-05,102980.0,102970.0,0.52131743]
[1762905201781,8.521e-05,102980.0,102970.0,0.55611308]
[1762905203681,0.00014526,102990.0,102980.0,0.15384]
[1762905203989,0.1423018,103010.0,103000.0,0.1538117]
[1762905204182,0.1423018,103010.0,103000.0,0.51680973]
[1762905205277,0.1443018,103010.0,103000.0,0.51680973]
[1762905205483,0.1443018,103010.0,103000.0,0.15600973]
[1762905205787,0.1443018,103010.0,103000.0,0.51680973]
[1762905205983,0.1443017,103010.0,103000.0,0.51680973]
[1762905206284,0.1463017,103010.0,103000.0,0.51680973]
[1762905206683,0.1443017,103010.0,103000.0,0.51680973]
[1762905207078,0.04718,103010.0,103000.0,0.51680973]
[1762905207687,0.1443017,103010.0,103000.0,0.51680973]
[1762905207988,0.1423017,103010.0,103000.0,0.51680973]
[1762905208288,0.1423017,103010.0,103000.0,0.15600973]
[1762905209080,0.1423017,103010.0,103000.0,0.55156865]
[1762905209784,0.1423017,103010.0,103000.0,0.19076865]
[1762905210376,0.1423017,103010.0,103000.0,0.55156865]
[1762905210583,0.1423017,103010.0,103000.0,0.09364695]
[1762905210784,0.1517817,103010.0,103000.0,0.05888803]
[1762905210983,0.1517817,103010.0,103000.0,0.15601913]
[1762905211189,0.29017297,103010.0,103000.0,0.15601913]
[1762905211585,0.29017297,103010.0,103000.0,0.04597803]
[1762905211782,0.65097297,103010.0,102990.0,0.40861418]
[1762905211981,1.02109237,103000.0,102990.0,0.02441329]
[1762905212892,1.02109237,103000.0,102990.0,0.00334329]
[1762905213292,1.02109237,103000.0,102990.0,0.00234329]
[1762905213492,1.02209237,103000.0,102990.0,0.00234329]
[1762905213789,1.02209237,103000.0,102990.0,0.00334329]
[1762905214396,1.02209237,103000.0,102990.0,0.00234329]
[1762905214594,1.02309237,103000.0,102990.0,0.00234329]
[1762905214794,1.02309237,103000.0,102990.0,0.02441329]
[1762905214996,1.02309237,103000.0,102990.0,0.00234329]
[1762905215193,1.02309237,103000.0,102990.0,0.00014526]
[1762905216195,0.15385,102980.0,102970.0,0.07853892]
[1762905216381,1.02200127,102980.0,102970.0,0.00219803]
[1762905216581,1.02200127,102980.0,102970.0,0.04597803]
[1762905216991,1.10122759,102980.0,102970.0,0.02426803]
[1762905217193,1.10122759,102980.0,102970.0,0.00219803]
[1762905217586,0.78646,102980.0,102970.0,0.14413743]
[1762905217790,0.52281,102980.0,102970.0,0.50593743]
[1762905217985,0.52281,102980.0,102970.0,0.51884743]
[1762905217986,0.04518,102980.0,102970.0,0.51884743]
[1762905218187,0.02305,102980.0,102970.0,0.55360635]
[1762905218497,0.04532526,102990.0,102980.0,0.15384]
[1762905218699,0.41468526,102990.0,102980.0,0.51683803]
[1762905218996,0.51182586,102990.0,102980.0,0.55159695]
[1762905219196,0.41468526,102990.0,102980.0,0.55159695]
[1762905219395,0.51182586,102990.0,102980.0,0.19079695]
[1762905219582,0.51186586,102990.0,102980.0,0.15603803]
[1762905219785,0.51286586,102990.0,102980.0,0.15603803]
[1762905220587,0.41672526,102990.0,102980.0,0.15603803]
[1762905220789,0.41672526,102990.0,102980.0,0.19079695]
[1762905220985,0.04732526,102990.0,102980.0,0.19079695]
[1762905221197,0.14446586,102990.0,102980.0,0.19079695]
[1762905221589,0.04732526,102990.0,102980.0,0.55159695]
[1762905222183,0.04732526,102990.0,102980.0,0.60347902]
[1762905222390,0.04632526,102990.0,102980.0,0.60347902]
[1762905222890,0.04532526,102990.0,102980.0,2.10347902]
[1762905223488,0.14246586,102990.0,102980.0,2.10347902]